[Event "Portugal Open 2019"]
[Site "Lisbon"]
[Date "2019.02.03"]
[Round "3.34"]
[White "Bartel, Michal"]
[Black "Darnell, Anton"]
[Result "1-0"]
[ECO "C16"]
[WhiteElo "2306"]
[BlackElo "2039"]
[Annotator "NA RC"]
[PlyCount "73"]
[EventDate "2019.01.25"]
[EventType "swiss"]
[EventCountry "POR"]
[SourceTitle "playchess.com"]
[Source "ChessBase"]
[SourceQuality "1"]
[TimeControl "5400+30"]

{[%evp 16,71,8,13,-3,6,12,0,32767,32767,32767,32767,32767,32767,64,68,68,68,73,63,66,64,32767,72,69,37,32767,32767,32767,32767,32767,32767,94,124,125,102,106,32767,32767,152,32767,32767,32767,32767,32767,32767,32767,32767,32767,470,32767,538,554,866,485,971,887,1069]} 1. e4 {[%emt 0:01:25]} ({Predecessor:} 1. d4 e6 {½-½ (19) Niermann,R (2116)-Bachofner,A (2240) Vienna 2009}) 1... e6 {[%emt 0:00:00]} 2. d4 {[%emt 0:00:03]} d5 {[%emt 0:00:03]} 3. Nc3 {[%emt 0:00:06]} Bb4 {[%emt 0:00:08]} 4. e5 {[%emt 0:00:34]} b6 {[%emt 0:00:10]} 5. Qg4 {[%emt 0:03:46]} Bf8 {[%emt 0:00:11]} 6. f4 {[%emt 0:03:10]} Qd7 $146 {[%emt 0:00:39] C16: French: 3 Nc3 Bb4 4 e5: Lines without ...c5} ({Predecessor:} 6... Ne7 7. Bd3 (7. Nf3 {½-½ (19) Niermann,R (2116)-Bachofner,A (2240) Vienna 2009}) 7... Ba6 8. Bxa6 Nxa6 9. Qe2 Nb4 10. a3 Nbc6 11. Nf3 Nf5 12. Be3 h5 13. O-O Qd7 14. Bf2 {½-½ (46) Arjun,K (2269)-Malakhatko,V (2514) Chennai 2017}) 7. Nf3 {[%emt 0:01:18]} Ne7 {[%emt 0:01:28]} 8. Ne2 {[%emt 0:02:51]} Ba6 {[%emt 0:16:20]} 9. Ng3 {[%emt 0:00:38]} Bxf1 {[%emt 0:00:25]} 10. Rxf1 {[%emt 0:00:06]} g6 {[%emt 0:03:20]} ({Predecessor:} 10... a6 11. Ng5 h6 12. Nf3 Nbc6 13. c3 Nf5 14. Nxf5 exf5 15. Qh4 Be7 16. Qf2 Nd8 17. h3 h5 18. Qe2 Ne6 19. Be3 a5 {½-½ (19) Niermann,R (2116)-Bachofner,A (2240) Vienna 2009}) 11. Qh4 {[%emt 0:02:12]} Nf5 {[%emt 0:20:44]} 12. Nxf5 {[%emt 0:00:19]} gxf5 {[%emt 0:00:14]} 13. Be3 {[%emt 0:04:45]} Nc6 {[%emt 0:08:57]} 14. O-O-O {[%emt 0:04:49]} Ne7 {[%emt 0:10:04]} 15. Qh5 {[%emt 0:03:47]} Ng6 {[%emt 0:06:07]} 16. h3 {[%emt 0:00:22]} O-O-O {[%emt 0:00:33]} 17. g4 {[%emt 0:00:06]} Be7 {[%emt 0:02:20]} 18. Rg1 {[%emt 0:03:30]} f6 {[%emt 0:04:46]} 19. Kb1 {[%emt 0:09:19]} Kb7 {[%emt 0:00:13]} 20. Rd2 {[%emt 0:06:10]} Rdf8 {[%emt 0:02:01]} 21. gxf5 {[%emt 0:00:33]} exf5 {[%emt 0:00:17]} 22. Rc1 {[%emt 0:04:24]} c5 {[%emt 0:13:44]} 23. c4 {[%emt 0:10:16]} fxe5 {[%emt 0:01:47]} 24. fxe5 {[%emt 0:02:15]} f4 {[%emt 0:00:58]} 25. Bf2 {[%emt 0:00:22]} dxc4 {[%emt 0:05:03]} 26. d5 {[%emt 0:05:02]} Rf5 {[%emt 0:01:46]} 27. Qg4 {[%emt 0:00:14]} Rhf8 {[%emt 0:00:36]} 28. Re1 {[%emt 0:00:09]} Bd8 {[%emt 0:00:33]} 29. h4 {[%emt 0:02:57]} Nh8 {[%emt 0:00:31]} 30. e6 {[%emt 0:03:29]} Qd6 {[%emt 0:00:23]} 31. Qg7+ {[%emt 0:00:25]} Be7 {[%emt 0:00:29]} 32. Qxh7 {[%emt 0:00:15]} Kb8 {[%emt 0:00:37]} 33. Red1 {[%emt 0:04:04]} b5 {[%emt 0:00:27] [#]} 34. Bxc5 $18 {[%emt 0:02:08]} Qxc5 {[%emt 0:00:09]} 35. d6 {[%emt 0:00:01]} Bxd6 {[%emt 0:00:21]} 36. Rxd6 {[%emt 0:00:04]} Rh5 {[%emt 0:01:03]} 37. Rd8+ {[%emt 0:00:06]} 1-0

[Event "Portugal Open 2019"]
[Site "Lisbon"]
[Date "2019.02.03"]
[Round "3.35"]
[White "Fernandes, Alberto"]
[Black "Chylewski, Patryk"]
[Result "0-1"]
[ECO "A01"]
[WhiteElo "2072"]
[BlackElo "2304"]
[Annotator "NA RC"]
[PlyCount "87"]
[EventDate "2019.01.25"]
[EventType "swiss"]
[EventCountry "POR"]
[SourceTitle "playchess.com"]
[Source "ChessBase"]
[SourceQuality "1"]
[TimeControl "5400+30"]

{[%evp 8,77,8,32767,32767,-2,5,2,10,32767,3,6,18,4,32767,32767,32767,32767,32767,32767,32767,32767,32767,32767,-28,-14,0,32767,0,-16,-4,0,0,-2,0,6,0,32767,32767,32767,32767,32767,6,-7,45,-5,31,-17,32767,32767,32767,32767,32767,32767,32767,-114,32767,-110,-112,-110,-125,-115,32767,-158,-168,-179,32767,32767,-178,32767,32767,-179]} 1. b3 d5 2. Bb2 Bg4 3. h3 Bh5 4. g3 c6 5. Bg2 Nd7 6. Nf3 Ngf6 7. O-O Qc7 {LiveBook: 3 Games} 8. d4 e6 9. Nbd2 a5 10. a4 Bb4 11. c4 O-O 12. Rc1 Rfe8 13. Ne5 Nxe5 14. dxe5 Nd7 15. f4 Qb6+ 16. Kh2 Bg6 17. Nf3 Be4 18. Ng5 Bxg2 19. Kxg2 h6 20. Nf3 Rad8 21. Qc2 Bc5 22. Rcd1 Be7 23. Nd4 dxc4 24. Qxc4 Qc5 25. Qxc5 Bxc5 26. Kf3 Bb4 27. Rc1 Nc5 28. Rfd1 Rd5 29. Bc3 Red8 30. Bxb4 axb4 31. Re1 Nd3 32. exd3 Rxd4 33. Rc4 Rxd3+ 34. Re3 R8d4 35. Rc2 Rd1 36. h4 $19 h5 37. Ke2 Rh1 38. Rc5 Rh2+ 39. Kf3 Rhd2 40. Rc1 Kh7 41. Re4 R4d3+ 42. Re3 Rxe3+ 43. Kxe3 Rb2 44. Kd4 0-1

[Event "Portugal Open 2019"]
[Site "Lisbon"]
[Date "2019.02.03"]
[Round "3.37"]
[White "Gjestemoen-VonHirsch, Andre"]
[Black "Risting, Eivind Olav"]
[Result "1/2-1/2"]
[ECO "A45"]
[WhiteElo "2038"]
[BlackElo "2282"]
[Annotator "NA RC"]
[PlyCount "49"]
[EventDate "2019.01.25"]
[EventType "swiss"]
[EventCountry "POR"]
[SourceTitle "playchess.com"]
[Source "ChessBase"]
[SourceQuality "1"]
[TimeControl "5400+30"]

1. d4 Nf6 2. Bf4 d5 3. e3 c5 4. c3 Nc6 5. Nd2 Bf5 6. Qb3 Qc8 7. Ngf3 c4 8. Qd1 e6 9. Nh4 Be7 10. Be2 O-O 11. O-O b5 12. Nxf5 exf5 13. Qc2 Qe6 14. b3 h6 15. a4 a6 16. axb5 axb5 17. bxc4 bxc4 18. h3 g5 19. Bh2 $11 f4 {[#]} 20. Rae1 $1 fxe3 21. Bd1 exf2+ 22. Kxf2 Qd7 23. Kg1 Rae8 24. Be5 Nxe5 25. dxe5 1/2-1/2

[Event "Portugal Open 2019"]
[Site "Lisbon"]
[Date "2019.02.04"]
[Round "4.11"]
[White "Spraggett, Kevin"]
[Black "Sousa, Ludy Helsio Paulo"]
[Result "1/2-1/2"]
[ECO "A05"]
[WhiteElo "2513"]
[BlackElo "2169"]
[Annotator "RC"]
[PlyCount "114"]
[EventDate "2019.01.25"]
[EventType "swiss"]
[EventCountry "POR"]
[SourceTitle "playchess.com"]
[Source "ChessBase"]
[SourceQuality "1"]
[TimeControl "5400+30"]

1. Nf3 {[%emt 0:02:28]} Nf6 {[%emt 0:01:18]} 2. g3 {[%emt 0:00:10]} g6 {[%emt 0:00:11]} 3. b3 {[%emt 0:00:16]} Bg7 {[%emt 0:00:05]} 4. Bb2 {[%emt 0:00:06]} d6 {[%emt 0:00:48]} 5. c4 {[%emt 0:00:12]} e5 {[%emt 0:00:41]} 6. d3 {[%emt 0:00:14]} O-O {[%emt 0:00:06]} 7. Bg2 {[%emt 0:00:16]} h6 {[%emt 0:01:03]} 8. O-O {[%emt 0:00:26]} Nc6 {[%emt 0:00:59]} 9. Nc3 {[%emt 0:00:22]} Be6 {[%emt 0:01:33]} 10. Nd2 {[%emt 0:01:11]} Qd7 {[%emt 0:05:46]} 11. a3 {[%emt 0:10:28]} a5 {[%emt 0:02:09]} 12. Nd5 {[%emt 0:01:39]} Bh3 {[%emt 0:04:04]} 13. e4 {[%emt 0:04:54]} Bxg2 {[%emt 0:03:39]} 14. Kxg2 {[%emt 0:00:22]} Nxd5 {[%emt 0:04:24]} 15. cxd5 {[%emt 0:00:08]} Nd4 {[%emt 0:01:06]} 16. Rc1 {[%emt 0:02:59]} c6 {[%emt 0:09:21]} 17. Nc4 {[%emt 0:07:52]} Ra6 {[%emt 0:00:46]} 18. dxc6 {[%emt 0:01:29]} bxc6 {[%emt 0:00:42]} 19. Bxd4 {[%emt 0:02:56]} exd4 {[%emt 0:00:23]} 20. Re1 {[%emt 0:00:49]} d5 {[%emt 0:01:18]} 21. Nd2 {[%emt 0:01:23]} Re8 {[%emt 0:01:28]} 22. Qc2 {[%emt 0:05:45]} h5 {[%emt 0:04:39]} 23. exd5 {[%emt 0:05:06]} Qxd5+ {[%emt 0:02:15]} 24. Kg1 {[%emt 0:02:09]} Raa8 {[%emt 0:14:00]} 25. h4 {[%emt 0:00:49]} Bf8 {[%emt 0:02:17]} 26. Nc4 {[%emt 0:05:12]} Rab8 {[%emt 0:00:44]} 27. Rxe8 {[%emt 0:26:46]} Rxe8 {[%emt 0:01:05]} 28. Qd2 {[%emt 0:00:50]} Qf3 {[%emt 0:03:10]} 29. Rf1 {[%emt 0:00:05]} Re2 {[%emt 0:01:23]} 30. Qd1 {[%emt 0:05:36]} f6 {[%emt 0:03:18]} 31. b4 {[%emt 0:00:03]} axb4 {[%emt 0:00:40]} 32. axb4 {[%emt 0:00:05]} Bh6 {[%emt 0:05:26]} 33. Qb3 {[%emt 0:01:03]} Kh8 {[%emt 0:00:21]} 34. b5 {[%emt 0:03:13]} cxb5 {[%emt 0:13:04]} 35. Qxb5 {[%emt 0:00:34]} Qxd3 {[%emt 0:00:44]} 36. Qb8+ {[%emt 0:04:55]} Kh7 {[%emt 0:00:14]} 37. Qb7+ {[%emt 0:00:19]} Bg7 {[%emt 0:00:18]} 38. Nd6 {[%emt 0:00:13]} Qc2 {[%emt 0:03:15]} 39. Qd7 {[%emt 0:04:53]} Qc5 {[%emt 0:02:29]} 40. Ne8 {[%emt 0:00:06]} Qe7 {[%emt 0:00:48]} 41. Qxe7 {[%emt 0:00:10]} Rxe7 {[%emt 0:00:04]} 42. Nxg7 {[%emt 0:00:06]} Kxg7 {[%emt 0:00:34]} 43. Rd1 {[%emt 0:00:01]} Rd7 {[%emt 0:00:11]} 44. Kf1 {[%emt 0:00:01]} d3 {[%emt 0:00:37]} 45. Ke1 {[%emt 0:00:06]} Re7+ {[%emt 0:01:13]} 46. Kf1 {[%emt 0:00:01]} Rd7 {[%emt 0:00:14]} 47. Ke1 {[%emt 0:00:01]} g5 {[%emt 0:02:15]} 48. Kd2 {[%emt 0:00:57]} Kg6 {[%emt 0:00:41]} 49. Rh1 {[%emt 0:00:22]} Rd4 {[%emt 0:01:23]} 50. Ke3 {[%emt 0:00:16]} Rd5 {[%emt 0:00:09]} 51. hxg5 {[%emt 0:01:32]} fxg5 {[%emt 0:02:12]} 52. Kd2 {[%emt 0:00:33]} g4 {[%emt 0:01:05]} 53. Rf1 {[%emt 0:01:45]} Kg5 {[%emt 0:00:49]} 54. Ke3 {[%emt 0:00:03]} d2 {[%emt 0:01:46]} 55. Rd1 {[%emt 0:00:02]} Kf5 {[%emt 0:00:32]} 56. Rxd2 {[%emt 0:00:18]} Rxd2 {[%emt 0:00:08]} 57. Kxd2 {[%emt 0:00:01]} Ke5 {[%emt 0:00:35]} 1/2-1/2

[Event "Portugal Open 2019"]
[Site "Lisbon"]
[Date "2019.02.04"]
[Round "4.17"]
[White "Chylewski, Patryk"]
[Black "Martin Duque, Jesus"]
[Result "0-1"]
[ECO "D31"]
[WhiteElo "2304"]
[BlackElo "2393"]
[Annotator "RC"]
[PlyCount "80"]
[EventDate "2019.01.25"]
[EventType "swiss"]
[EventCountry "POR"]
[SourceTitle "playchess.com"]
[Source "ChessBase"]
[SourceQuality "1"]
[TimeControl "5400+30"]

1. d4 {[%emt 0:00:00]} d5 {[%emt 0:00:00]} 2. c4 {[%emt 0:00:00]} e6 {[%emt 0:00:00]} 3. Nc3 {[%emt 0:00:00]} Bb4 {[%emt 0:00:00]} 4. e3 {[%emt 0:02:17]} Nf6 {[%emt 0:00:00]} 5. Nf3 {[%emt 0:01:36]} O-O {[%emt 0:00:00]} 6. Bd2 {[%emt 0:03:15]} b6 {[%emt 0:00:04]} 7. cxd5 {[%emt 0:00:34]} exd5 {[%emt 0:00:01]} 8. Bd3 {[%emt 0:00:09]} Bb7 {[%emt 0:00:55]} 9. Rc1 {[%emt 0:02:28]} a6 {[%emt 0:00:49]} 10. O-O {[%emt 0:02:11]} Bd6 {[%emt 0:00:05]} 11. Re1 {[%emt 0:13:46]} Re8 {[%emt 0:06:00]} 12. Qc2 {[%emt 0:05:04]} Ne4 {[%emt 0:01:31]} 13. Red1 {[%emt 0:04:21]} Nd7 {[%emt 0:06:47]} 14. Qb3 {[%emt 0:02:59]} Nxd2 {[%emt 0:08:46]} 15. Nxd2 {[%emt 0:03:45]} Nf6 {[%emt 0:07:39]} 16. Nf1 {[%emt 0:10:57]} Rb8 {[%emt 0:02:35]} 17. Qc2 {[%emt 0:02:15]} Qe7 {[%emt 0:06:51]} 18. Qe2 {[%emt 0:02:04]} Ra8 {[%emt 0:04:20]} 19. Ng3 {[%emt 0:01:45]} g6 {[%emt 0:00:49]} 20. Re1 {[%emt 0:01:35]} h5 {[%emt 0:04:44]} 21. Nf1 {[%emt 0:00:35]} Kg7 {[%emt 0:03:00]} 22. Nd2 {[%emt 0:01:04]} c5 {[%emt 0:03:05]} 23. dxc5 {[%emt 0:12:41]} bxc5 {[%emt 0:00:14]} 24. h3 {[%emt 0:00:35]} Bc7 {[%emt 0:15:26]} 25. Nf1 {[%emt 0:02:06]} Qd6 {[%emt 0:02:06]} 26. Qc2 {[%emt 0:05:58]} Rac8 {[%emt 0:03:32]} 27. Qb1 {[%emt 0:02:38]} Bb8 {[%emt 0:03:35]} 28. Rcd1 {[%emt 0:00:58]} Re5 {[%emt 0:07:22]} 29. Kh1 {[%emt 0:05:06]} Rce8 {[%emt 0:03:52]} 30. e4 {[%emt 0:05:20]} dxe4 {[%emt 0:02:47]} 31. Nxe4 {[%emt 0:05:35]} Nxe4 {[%emt 0:01:50]} 32. Bxe4 {[%emt 0:00:08]} Qe7 {[%emt 0:00:47]} 33. f3 {[%emt 0:01:13]} f5 {[%emt 0:01:08]} 34. Bxb7 {[%emt 0:00:37]} Rxe1 {[%emt 0:00:02]} 35. Bxa6 {[%emt 0:01:20]} Rxd1 {[%emt 0:00:39]} 36. Qxd1 {[%emt 0:00:04]} Qd6 {[%emt 0:00:47]} 37. Qa4 {[%emt 0:00:59]} Re6 {[%emt 0:01:25]} 38. Bc4 {[%emt 0:00:29]} Re1 {[%emt 0:00:16]} 39. Kg1 {[%emt 0:00:28]} Qd4+ {[%emt 0:00:05]} 40. Kh1 {[%emt 0:00:05]} Rxf1+ {[%emt 0:00:05]} 0-1

[Event "Portugal Open 2019"]
[Site "Lisbon"]
[Date "2019.02.04"]
[Round "4.26"]
[White "Di Nicolantonio, Lucas"]
[Black "Ferreira, Hugo Miguel Da Cost"]
[Result "1-0"]
[ECO "A02"]
[WhiteElo "2364"]
[BlackElo "2136"]
[Annotator "RC"]
[PlyCount "39"]
[EventDate "2019.01.25"]
[EventType "swiss"]
[EventCountry "POR"]
[SourceTitle "playchess.com"]
[Source "ChessBase"]
[SourceQuality "1"]
[TimeControl "5400+30"]

1. f4 {[%emt 0:04:11]} b6 {[%emt 0:05:20]} 2. e4 {[%emt 0:05:13]} e5 {[%emt 0:00:08]} 3. Nf3 {[%emt 0:02:26]} exf4 {[%emt 0:02:46]} 4. Bc4 {[%emt 0:18:28]} Qe7 {[%emt 0:07:42]} 5. d4 {[%emt 0:08:20]} Qxe4+ {[%emt 0:04:00]} 6. Kf2 {[%emt 0:00:32]} Qf5 {[%emt 0:00:12]} 7. Re1+ {[%emt 0:10:36]} Be7 {[%emt 0:01:36]} 8. Nc3 {[%emt 0:00:45]} Bb7 {[%emt 0:08:32]} 9. Kg1 {[%emt 0:06:31]} Nc6 {[%emt 0:07:24]} 10. d5 {[%emt 0:03:46]} Nb4 {[%emt 0:05:16]} 11. Nd4 {[%emt 0:04:12]} Qg5 {[%emt 0:03:34]} 12. Nf3 {[%emt 0:04:52]} Qf5 {[%emt 0:04:24]} 13. a3 {[%emt 0:02:04]} Na6 {[%emt 0:02:37]} 14. Nd4 {[%emt 0:02:46]} Qf6 {[%emt 0:04:04]} 15. Ne4 {[%emt 0:01:14]} Qg6 {[%emt 0:00:31]} 16. Bd3 {[%emt 0:11:22]} Bxd5 {[%emt 0:02:27]} 17. Bxf4 {[%emt 0:01:16]} f5 {[%emt 0:09:37]} 18. Nxf5 {[%emt 0:03:59]} Qc6 {[%emt 0:05:23]} 19. Qe2 {[%emt 0:05:10]} Nc5 {[%emt 0:02:55]} 20. Nxe7 {[%emt 0:00:13]} 1-0

[Event "Portugal Open 2019"]
[Site "Lisbon"]
[Date "2019.02.04"]
[Round "4.28"]
[White "Rocha, Sergio"]
[Black "Eggert, Alberto"]
[Result "1-0"]
[ECO "D02"]
[WhiteElo "2354"]
[BlackElo "2132"]
[Annotator "RC"]
[PlyCount "55"]
[EventDate "2019.01.25"]
[EventType "swiss"]
[EventCountry "POR"]
[SourceTitle "playchess.com"]
[Source "ChessBase"]
[SourceQuality "1"]
[TimeControl "5400+30"]

1. d4 {[%emt 0:00:00]} d5 {[%emt 0:01:22]} 2. Nf3 {[%emt 0:00:00]} Nc6 {[%emt 0:00:21]} 3. Bf4 {[%emt 0:00:03]} Bf5 {[%emt 0:00:44]} 4. e3 {[%emt 0:00:11]} e6 {[%emt 0:00:33]} 5. Be2 {[%emt 0:00:56]} Bd6 {[%emt 0:00:44]} 6. O-O {[%emt 0:00:15]} Nge7 {[%emt 0:02:04]} 7. a3 {[%emt 0:02:04]} Ng6 {[%emt 0:09:07]} 8. Bxd6 {[%emt 0:02:13]} cxd6 {[%emt 0:01:15]} 9. Nbd2 {[%emt 0:01:05]} O-O {[%emt 0:01:20]} 10. Ne1 {[%emt 0:01:17]} e5 {[%emt 0:01:02]} 11. c3 {[%emt 0:03:38]} e4 {[%emt 0:03:24]} 12. g3 {[%emt 0:03:00]} Bh3 {[%emt 0:01:21]} 13. Ng2 {[%emt 0:00:09]} Qg5 {[%emt 0:19:13]} 14. Re1 Bxg2 {[%emt 0:06:40]} 15. Kxg2 {[%emt 0:06:05]} f5 {[%emt 0:01:54]} 16. Kh1 {[%emt 0:00:14]} Rf6 {[%emt 0:00:20]} 17. Rg1 {[%emt 0:03:19]} Raf8 {[%emt 0:08:42]} 18. Qf1 {[%emt 0:07:25]} Nge7 {[%emt 0:02:51]} 19. Re1 {[%emt 0:02:10]} h5 {[%emt 0:05:51]} 20. f4 {[%emt 0:04:07]} exf3 {[%emt 0:03:59]} 21. Qxf3 {[%emt 0:05:17]} h4 {[%emt 0:00:17]} 22. Qf4 {[%emt 0:00:41]} Qh6 {[%emt 0:01:27]} 23. gxh4 {[%emt 0:15:30]} Qxf4 {[%emt 0:00:32]} 24. exf4 {[%emt 0:00:05]} Ng6 {[%emt 0:00:17]} 25. Rgf1 {[%emt 0:00:21]} Nxh4 {[%emt 0:04:32]} 26. Nf3 {[%emt 0:00:56]} Ng6 {[%emt 0:01:52]} 27. Ng5 {[%emt 0:00:09]} Re8 {[%emt 0:06:33]} 28. Bc4 {[%emt 0:03:14]} 1-0

[Event "Portugal Open 2019"]
[Site "Lisbon"]
[Date "2019.02.04"]
[Round "4.29"]
[White "Lisowski, Krzysztof"]
[Black "Tryggestad, Andreas Garberg"]
[Result "1-0"]
[ECO "B40"]
[WhiteElo "2135"]
[BlackElo "2351"]
[Annotator "RC"]
[PlyCount "67"]
[EventDate "2019.01.25"]
[EventType "swiss"]
[EventCountry "POR"]
[SourceTitle "playchess.com"]
[Source "ChessBase"]
[SourceQuality "1"]
[TimeControl "5400+30"]

1. e4 {[%emt 0:00:00]} c5 {[%emt 0:00:00]} 2. Nf3 {[%emt 0:00:00]} e6 {[%emt 0:00:00]} 3. g3 {[%emt 0:00:34]} Nc6 {[%emt 0:00:49]} 4. Bg2 {[%emt 0:00:57]} Nf6 {[%emt 0:02:22]} 5. d3 {[%emt 0:01:03]} d6 {[%emt 0:06:42]} 6. O-O {[%emt 0:02:38]} g6 {[%emt 0:00:07]} 7. Re1 {[%emt 0:02:12]} Bg7 {[%emt 0:00:18]} 8. c3 {[%emt 0:02:19]} d5 {[%emt 0:01:10]} 9. e5 {[%emt 0:10:31]} Nd7 {[%emt 0:00:16]} 10. d4 {[%emt 0:18:38]} O-O {[%emt 0:00:06]} 11. Nbd2 {[%emt 0:14:30]} b5 {[%emt 0:02:14]} 12. Nf1 {[%emt 0:01:19]} b4 {[%emt 0:00:42]} 13. a3 {[%emt 0:06:09]} cxd4 {[%emt 0:17:37]} 14. cxd4 {[%emt 0:00:45]} Qb6 {[%emt 0:02:17]} 15. h4 {[%emt 0:03:41]} f6 {[%emt 0:01:05]} 16. Bf4 {[%emt 0:09:19]} fxe5 {[%emt 0:08:35]} 17. dxe5 {[%emt 0:00:28]} Ba6 {[%emt 0:03:48]} 18. Ne3 {[%emt 0:09:11]} Rad8 {[%emt 0:14:11]} 19. Ng4 {[%emt 0:08:21]} Rde8 {[%emt 0:21:45]} 20. Rc1 {[%emt 0:03:06]} bxa3 {[%emt 0:02:19]} 21. bxa3 {[%emt 0:00:11]} Kh8 {[%emt 0:05:19]} 22. Bh3 {[%emt 0:00:55]} Na5 {[%emt 0:00:45]} 23. Ng5 {[%emt 0:01:57]} Nc4 {[%emt 0:00:02]} 24. h5 {[%emt 0:02:26]} Nb2 {[%emt 0:00:46]} 25. Qd2 {[%emt 0:00:28]} Nd3 {[%emt 0:00:06]} 26. h6 {[%emt 0:00:21]} N7c5 {[%emt 0:02:54]} 27. hxg7+ {[%emt 0:00:26]} Kxg7 {[%emt 0:00:01]} 28. Nf6 {[%emt 0:00:33]} Re7 {[%emt 0:00:43]} 29. Ngxh7 {[%emt 0:00:41]} Nb3 {[%emt 0:00:33]} 30. Bh6+ {[%emt 0:00:21]} Kh8 {[%emt 0:00:02]} 31. Nxf8 {[%emt 0:00:15]} Rg7 {[%emt 0:00:52]} 32. Qxd3 {[%emt 0:01:03]} Bxd3 {[%emt 0:00:08]} 33. Nxg6+ {[%emt 0:00:06]} Bxg6 {[%emt 0:00:25]} 34. Rc8+ {[%emt 0:00:03]} 1-0

[Event "Portugal Open 2019"]
[Site "Lisbon"]
[Date "2019.02.04"]
[Round "4.32"]
[White "Bruaset, Eivind"]
[Black "Pastar, Slaven"]
[Result "1/2-1/2"]
[ECO "B00"]
[WhiteElo "2124"]
[BlackElo "2330"]
[Annotator "NA RC"]
[PlyCount "70"]
[EventDate "2019.01.25"]
[EventType "swiss"]
[EventCountry "POR"]
[SourceTitle "playchess.com"]
[Source "ChessBase"]
[SourceQuality "1"]
[TimeControl "5400+30"]

1. e4 {[%emt 0:02:57]} b6 {[%emt 0:00:37]} 2. d4 {[%emt 0:00:12]} Bb7 {[%emt 0:00:01]} 3. Bd3 {[%emt 0:00:09]} e6 {[%emt 0:00:02]} 4. Nf3 {[%emt 0:00:18]} c5 {[%emt 0:01:43]} 5. c3 {[%emt 0:00:15]} Nf6 {[%emt 0:00:34]} 6. e5 {[%emt 0:00:51]} Nd5 {[%emt 0:05:12]} 7. Be4 {[%emt 0:12:16]} c4 {[%emt 0:06:32]} 8. Qc2 {[%emt 0:07:35]} h6 {[%emt 0:03:59]} 9. O-O {[%emt 0:02:52]} b5 {[%emt 0:15:52]} 10. Nbd2 {[%emt 0:01:22]} Qc7 {[%emt 0:06:10]} 11. Re1 {[%emt 0:02:48]} d6 {[%emt 0:02:00]} 12. b3 {[%emt 0:06:53]} Nd7 {[%emt 0:03:26]} 13. Ba3 {[%emt 0:06:51]} (13. Rb1 $16) 13... N7b6 {[%emt 0:06:13]} (13... Rc8 $14) 14. bxc4 {[%emt 0:03:11]} bxc4 {[%emt 0:03:54]} 15. Rab1 {[%emt 0:02:42]} Rc8 {[%emt 0:05:58]} 16. g3 {[%emt 0:08:54]} Be7 {[%emt 0:00:48]} 17. exd6 {[%emt 0:01:16]} Bxd6 {[%emt 0:00:23]} 18. Bxd6 {[%emt 0:00:06]} Qxd6 {[%emt 0:00:18]} 19. Ne5 {[%emt 0:00:28]} O-O {[%emt 0:05:34]} 20. a4 {[%emt 0:01:48]} Ba6 {[%emt 0:04:58] [#]} (20... Qc7 $16) 21. Bh7+ $1 {[%emt 0:10:59]} Kh8 {[%emt 0:00:38] [#]} 22. Ne4 $1 {[%emt 0:00:06]} Qe7 {[%emt 0:15:47]} 23. f4 $2 {[%emt 0:06:24]} ({White should play} 23. Nc5 $18) 23... Nd7 $16 {[%emt 0:04:06]} 24. f5 {[%emt 0:08:41]} Nxe5 {[%emt 0:05:30]} 25. dxe5 {[%emt 0:00:16]} Rc6 {[%emt 0:01:08]} 26. Nd6 {[%emt 0:03:15]} exf5 {[%emt 0:00:36]} 27. Qxf5 {[%emt 0:00:47]} g6 {[%emt 0:00:52]} 28. Bxg6 {[%emt 0:00:15]} fxg6 {[%emt 0:00:01]} 29. Qxg6 {[%emt 0:00:01]} Qg7 {[%emt 0:00:56]} 30. Nf7+ {[%emt 0:00:43]} Qxf7 {[%emt 0:00:13]} 31. Qxc6 {[%emt 0:00:10]} Qf2+ {[%emt 0:00:51]} 32. Kh1 {[%emt 0:00:03]} Qf3+ {[%emt 0:00:27]} 33. Kg1 {[%emt 0:00:01]} Qf2+ {[%emt 0:00:37]} 34. Kh1 {[%emt 0:00:01]} Qf3+ {[%emt 0:00:29]} 35. Kg1 {[%emt 0:00:02]} Qf2+ {[%emt 0:00:25]} 1/2-1/2